fUSD/lending_fUSD_20241223
["ID","MTS","AMOUNT","RATE_DAILY","PERIOD"]
[346388704,1734934239620,-500.0,0.00019178,2]
[346388706,1734934239629,-500.0,0.00019178,2]
[346388708,1734934239638,-500.0,0.00019178,2]
[346388710,1734934239647,-500.0,0.00019178,2]
[346388712,1734934239657,-526.16439099,0.00019178,2]
[346388715,1734934239666,-501.55395553,0.00019178,2]
[346388716,1734934239676,-500.0,0.00019178,2]
[346388718,1734934239686,-496.68589236,0.00019178,2]
[346388720,1734934239695,-500.0,0.00019178,2]
[346388722,1734934239705,-500.0,0.00019178,2]
[346388724,1734934239714,-500.0,0.00019178,2]
[346388726,1734934239723,-500.0,0.00019178,2]
[346388728,1734934239732,-500.0,0.00019178,2]
[346388731,1734934239743,-500.0,0.00019178,2]
[346388732,1734934239752,-500.0,0.00019178,2]
[346388735,1734934239762,-405.80000554,0.00019178,2]
[346388737,1734934239771,-500.0,0.00019178,2]
[346388739,1734934239782,-324.56584885,0.00019178,2]
[346388741,1734934239791,-816.91,0.00019178,2]
[346388743,1734934239802,-500.0,0.00019178,2]
[346388745,1734934239812,-500.0,0.00019178,2]
[346388747,1734934239821,-500.0,0.00019178,2]
[346388749,1734934239830,-500.0,0.00019178,2]
[346388751,1734934239840,-576.95,0.00019178,2]
[346388753,1734934239849,-500.0,0.00019178,2]
[346388754,1734934239858,-500.0,0.00019178,2]
[346388756,1734934239872,-502.53,0.00019178,2]
[346388759,1734934239882,-500.0,0.00019178,2]
[346388760,1734934239892,-648.93,0.00019178,2]
[346388763,1734934239902,-312.15767291,0.00019178,2]
[346388765,1734934239911,-500.0,0.00019178,2]
[346388766,1734934239920,-500.0,0.00019178,2]
[346388769,1734934239933,-554.63,0.00019178,2]
[346388771,1734934239942,-482.23606552,0.00019178,2]
[346388773,1734934239952,-680.83,0.00019178,2]
[346388775,1734934239961,-500.0,0.00019178,2]
[346388777,1734934239971,-614.31,0.00019178,2]
[346388779,1734934239980,-504.26005644,0.00019178,2]
[346388781,1734934239991,-493.59767367,0.00019178,2]
[346388783,1734934240000,-500.0,0.00019178,2]
[346388784,1734934240009,-500.0,0.00019178,2]
[346388785,1734934240019,-796.19,0.00019178,2]
[346388786,1734934240028,-500.0,0.00019178,2]
[346388787,1734934240038,-500.0,0.00019178,2]
[346388788,1734934240047,-1348.63,0.00019178,2]
[346388789,1734934240060,-500.0,0.00019178,2]
[346388790,1734934240070,-737.3,0.00019178,2]
[346388791,1734934240080,-500.0,0.00019178,2]
[346388792,1734934240089,-500.0,0.00019178,2]
[346388793,1734934240098,-197.0670921,0.00019178,2]
[346388794,1734934240108,-500.0,0.00019178,2]
[346388795,1734934240118,-500.0,0.00019178,2]
[346388797,1734934240127,-543.46,0.00019178,2]
[346388799,1734934240137,-500.0,0.00019178,2]
[346388801,1734934240145,-873.84,0.00019178,2]
[346388803,1734934240155,-500.0,0.00019178,2]
[346388805,1734934240164,-500.0,0.00019178,2]
[346388807,1734934240173,-500.0,0.00019178,2]
[346388809,1734934240183,-456.31406877,0.00019178,2]
[346388811,1734934240192,-500.0,0.00019178,2]
[346388813,1734934240201,-500.0,0.00019178,2]
[346388815,1734934240212,-500.0,0.00019178,2]
[346388817,1734934240222,-500.0,0.00019178,2]
[346388820,1734934240231,-500.0,0.00019178,2]
[346388822,1734934240240,-500.0,0.00019178,2]
[346388824,1734934240250,-924.34,0.00019178,2]
[346388826,1734934240259,-639.9,0.00019178,2]
[346388828,1734934240269,-500.0,0.00019178,2]
[346388830,1734934240278,-500.0,0.00019178,2]
[346388832,1734934240288,-500.0,0.00019178,2]
[346388834,1734934240297,-500.0,0.00019178,2]
[346388836,1734934240308,-900.04,0.00019178,2]
[346388837,1734934240318,-911.99,0.00019178,2]
[346388838,1734934240327,-500.0,0.00019178,2]
[346388839,1734934240336,-500.0,0.00019178,2]
[346388840,1734934240346,-657.62,0.00019178,2]
[346388841,1734934240356,-219.53894662,0.00019178,2]
[346388842,1734934240365,-599.98,0.00019178,2]
[346388843,1734934240374,-500.0,0.00019178,2]
[346388844,1734934240384,-500.0,0.00019178,2]
[346388845,1734934240393,-500.0,0.00019178,2]
[346388846,1734934240402,-933.34,0.00019178,2]
[346388847,1734934240411,-850.19,0.00019178,2]
[346388848,1734934240420,-500.0,0.00019178,2]
[346388849,1734934240429,-500.0,0.00019178,2]
[346388850,1734934240438,-500.0,0.00019178,2]
[346388851,1734934240448,-500.0,0.00019178,2]
[346388852,1734934240457,-500.0,0.00019178,2]
[346388853,1734934240467,-500.0,0.00019178,2]
[346388854,1734934240476,-500.0,0.00019178,2]
[346388855,1734934240485,-500.0,0.00019178,2]
[346388856,1734934240495,-573.08,0.00019178,2]
[346388857,1734934240504,-500.0,0.00019178,2]
[346388858,1734934240513,-977.36,0.00019178,2]
[346388859,1734934240522,-500.0,0.00019178,2]
[346388860,1734934240532,-500.0,0.00019178,2]
[346388861,1734934240541,-500.0,0.00019178,2]
[346388862,1734934240552,-827.44,0.00019178,2]
[346388863,1734934240561,-500.0,0.00019178,2]
[346388864,1734934240571,-864.68,0.00019178,2]
[346388865,1734934240581,-765.6,0.00019178,2]
[346388866,1734934240590,-752.57,0.00019178,2]
[346388867,1734934240599,-642.28,0.00019178,2]
[346388868,1734934240609,-500.0,0.00019178,2]
[346388869,1734934240619,-500.0,0.00019178,2]
[346388870,1734934240628,-500.0,0.00019178,2]
[346388871,1734934240638,-762.3,0.00019178,2]
[346388872,1734934240647,-723.8,0.00019178,2]
[346388873,1734934240657,-500.0,0.00019178,2]
[346388874,1734934240666,-508.1,0.00019178,2]
[346388875,1734934240676,-500.0,0.00019178,2]
[346388876,1734934240685,-500.0,0.00019178,2]
[346388877,1734934240695,-500.0,0.00019178,2]
[346388878,1734934240704,-1129.78,0.00019178,2]
[346388879,1734934240714,-1186.0,0.00019178,2]
[346388880,1734934240723,-1382.33,0.00019178,2]
[346388881,1734934240732,-500.0,0.00019178,2]
[346388882,1734934240742,-500.0,0.00019178,2]
[346388883,1734934240751,-991.01,0.00019178,2]
[346388884,1734934240761,-638.44,0.00019178,2]
[346388885,1734934240770,-500.0,0.00019178,2]
[346388886,1734934240779,-500.0,0.00019178,2]
[346388887,1734934240788,-667.29,0.00019178,2]
[346388888,1734934240797,-950.71,0.00019178,2]
[346388889,1734934240806,-500.0,0.00019178,2]
[346388890,1734934240816,-475.17376195,0.00019178,2]
[346388891,1734934240825,-500.0,0.00019178,2]
[346388893,1734934240834,-500.0,0.00019178,2]
[346388894,1734934240845,-500.0,0.00019178,2]
[346388895,1734934240854,-792.09,0.00019178,2]
[346388896,1734934240863,-705.87,0.00019178,2]
[346388897,1734934240873,-1255.56,0.00019178,2]
[346388898,1734934240882,-3116.56,0.00019178,2]
[346388899,1734934240891,-8255.67,0.00019178,2]
[346388900,1734934240900,-500.0,0.00019178,2]
[346388901,1734934240909,-1945.4,0.00019178,2]
[346388902,1734934240919,-1632.51,0.00019178,2]
[346388903,1734934240930,-523.16,0.00019178,2]
[346388904,1734934240941,-1146.84,0.00019178,2]
[346388905,1734934240950,-752.2,0.00019178,2]
[346388906,1734934240960,-897.34,0.00019178,2]
[346388907,1734934240969,-585.61,0.00019178,2]
[346388908,1734934240979,-1421.0,0.00019178,2]
[346388909,1734934240988,-1929.84,0.00019178,2]
[346388910,1734934240997,-832.29,0.00019178,2]
[346388911,1734934241007,-500.0,0.00019178,2]
[346388912,1734934241016,-1104.51,0.00019178,2]
[346388913,1734934241026,-500.0,0.00019178,2]
[346388914,1734934241035,-911.73,0.00019178,2]
[346388915,1734934241044,-2109.57,0.00019178,2]
[346388916,1734934241054,-586.56818475,0.00019178,2]
[346388917,1734934241064,-2253.9,0.00019178,2]
[346388918,1734934241072,-500.0,0.00019178,2]
[346388919,1734934241082,-1461.46,0.00019178,2]
[346388920,1734934241091,-896.68,0.00019178,2]
[346388921,1734934241100,-1137.35,0.00019178,2]
[346388922,1734934241109,-500.0,0.00019178,2]
[346388923,1734934241119,-9789.68,0.00019178,2]
[346388924,1734934241128,-511.22,0.00019178,2]
[346388925,1734934241137,-1515.76,0.00019178,2]
[346388926,1734934241146,-1352.81,0.00019178,2]
[346388927,1734934241156,-689.74,0.00019178,2]
[346388928,1734934241165,-2210.16,0.00019178,2]
[346388929,1734934241174,-2377.63,0.00019178,2]
[346388930,1734934241184,-500.0,0.00019178,2]
[346388931,1734934241193,-8140.1,0.00019178,2]
[346388932,1734934241202,-1540.79,0.00019178,2]
[346388933,1734934241212,-1375.64,0.00019178,2]
[346388934,1734934241221,-3959.82,0.00019178,2]
[346388935,1734934241230,-791.46,0.00019178,2]
[346388936,1734934241239,-500.0,0.00019178,2]
[346388937,1734934241249,-935.55,0.00019178,2]
[346388938,1734934241258,-891.3,0.00019178,2]
[346388939,1734934241267,-29356.32,0.00019178,2]
[346388940,1734934241276,-500.0,0.00019178,2]
[346388941,1734934241286,-742.01,0.00019178,2]
[346388942,1734934241295,-1716.27,0.00019178,2]
[346388943,1734934241305,-529.60962526,0.00019178,2]
[346388944,1734934241315,-500.0,0.00019178,2]
[346388945,1734934241324,-500.0,0.00019178,2]
[346388946,1734934241333,-893.71,0.00019178,2]
[346388947,1734934241342,-1292.04,0.00019178,2]
[346388948,1734934241352,-355.01453776,0.00019178,2]
[346388949,1734934241362,-597.72,0.00019178,2]
[346388950,1734934241372,-1050.36,0.00019178,2]
[346388951,1734934241381,-970.54,0.00019178,2]
[346388952,1734934241390,-955.94,0.00019178,2]
[346388953,1734934241399,-2373.29,0.00019178,2]
[346388954,1734934241409,-7086.8,0.00019178,2]
[346388955,1734934241418,-567.7,0.00019178,2]
[346388956,1734934241428,-552.02,0.00019178,2]
[346388957,1734934241437,-4721.52,0.00019178,2]
[346388958,1734934241447,-1461.47,0.00019178,2]
[346388959,1734934241456,-1269.12,0.00019178,2]
[346388960,1734934241466,-503.07,0.00019178,2]
[346388961,1734934241475,-1243.23,0.00019178,2]
[346388962,1734934241485,-500.0,0.00019178,2]
[346388963,1734934241494,-1568.18,0.00019178,2]
[346388964,1734934241504,-1354.51,0.00019178,2]
[346388965,1734934241513,-1759.78,0.00019178,2]
[346388966,1734934241523,-2336.51,0.00019178,2]
[346388967,1734934241532,-500.0,0.00019178,2]
[346388968,1734934241542,-1867.43,0.00019178,2]
[346388969,1734934241551,-2913.41,0.00019178,2]
[346388970,1734934241561,-2103.33,0.00019178,2]
[346388971,1734934241570,-538.83,0.00019178,2]
[346388972,1734934241579,-500.0,0.00019178,2]
[346388973,1734934241589,-500.0,0.00019178,2]
[346388974,1734934241598,-1056.56,0.00019178,2]
[346388975,1734934241607,-500.0,0.00019178,2]
[346388976,1734934241616,-500.0,0.00019178,2]
[346388977,1734934241625,-687.11,0.00019178,2]
[346388978,1734934241635,-500.0,0.00019178,2]
[346388979,1734934241644,-500.0,0.00019178,2]
[346388980,1734934241653,-8752.61,0.00019178,2]
[346388981,1734934241663,-1075.57,0.00019178,2]
[346388982,1734934241672,-2775.24,0.00019178,2]
[346388983,1734934241681,-505.79,0.00019178,2]
[346388984,1734934241691,-1875.9,0.00019178,2]
[346388985,1734934241746,-3583.29,0.00019178,2]
[346388986,1734934241756,-1452.98,0.00019178,2]
[346388987,1734934241766,-1551.86,0.00019178,2]
[346388988,1734934241775,-500.0,0.00019178,2]
[346388989,1734934241784,-895.24,0.00019178,2]
[346388990,1734934241794,-1535.93,0.00019178,2]
[346388991,1734934241805,-500.0,0.00019178,2]
[346388992,1734934241815,-500.0,0.00019178,2]
[346388993,1734934241824,-2314.43,0.00019178,2]
[346388994,1734934241834,-500.0,0.00019178,2]
[346388995,1734934241843,-3071.01,0.00019178,2]
[346388996,1734934241852,-1972.54,0.00019178,2]
[346388997,1734934241862,-3069.78,0.00019178,2]
[346388998,1734934241871,-1600.38,0.00019178,2]
[346388999,1734934241880,-1152.72,0.00019178,2]
[346389000,1734934241890,-5050.52,0.00019178,2]
[346389001,1734934241900,-16408.61,0.00019178,2]
[346389002,1734934241909,-1037.31,0.00019178,2]
[346389003,1734934241918,-1835.05,0.00019178,2]
[346389004,1734934241928,-843.13,0.00019178,2]
[346389005,1734934241940,-1048.86,0.00019178,2]
[346389006,1734934241949,-3599.24,0.00019178,2]
[346389007,1734934241959,-689.25,0.00019178,2]
[346389008,1734934241968,-577.22,0.00019178,2]
[346389009,1734934241979,-4019.26,0.00019178,2]
[346389010,1734934241988,-500.0,0.00019178,2]
[346389011,1734934241998,-500.0,0.00019178,2]
[346389012,1734934242009,-3950.64,0.00019178,2]
[346389013,1734934242019,-1090.37,0.00019178,2]
[346389014,1734934242028,-2123.44,0.00019178,2]
[346389015,1734934242038,-1476.71,0.00019178,2]
[346389016,1734934242047,-500.0,0.00019178,2]
[346389017,1734934242057,-500.0,0.00019178,2]
[346389018,1734934242067,-807.62,0.00019178,2]
[346389019,1734934242076,-695.23,0.00019178,2]
[346389020,1734934242086,-500.0,0.00019178,2]
[346389021,1734934242095,-500.0,0.00019178,2]
[346389022,1734934242104,-3115.03,0.00019178,2]
[346389023,1734934242113,-824.02,0.00019178,2]
[346389024,1734934242123,-457.81430231,0.00019178,2]
[346389025,1734934242132,-6038.32,0.00019178,2]
[346389026,1734934242141,-1785.18,0.00019178,2]
[346389027,1734934242150,-1446.38,0.00019178,2]
[346389028,1734934242159,-500.0,0.00019178,2]
[346389029,1734934242169,-2676.57,0.00019178,2]
[346389030,1734934242178,-500.0,0.00019178,2]
[346389031,1734934242187,-500.0,0.00019178,2]
[346389032,1734934242196,-748.06,0.00019178,2]
[346389033,1734934242206,-1119.19,0.00019178,2]
[346389034,1734934242215,-500.0,0.00019178,2]
[346389035,1734934242223,-1043.41,0.00019178,2]
[346389036,1734934242233,-500.0,0.00019178,2]
[346389037,1734934242242,-500.0,0.00019178,2]
[346389038,1734934242251,-723.01,0.00019178,2]
[346389039,1734934242261,-550.42,0.00019178,2]
[346389040,1734934242270,-500.0,0.00019178,2]
[346389041,1734934242279,-1365.38,0.00019178,2]
[346389042,1734934242289,-4577.42,0.00019178,2]
[346389043,1734934242298,-500.0,0.00019178,2]
[346389044,1734934242308,-500.0,0.00019178,2]
[346389045,1734934242317,-3935.14,0.00019178,2]
[346389046,1734934242326,-500.0,0.00019178,2]
[346389047,1734934242335,-500.0,0.00019178,2]
[346389048,1734934242344,-500.0,0.00019178,2]
[346389049,1734934242353,-1100.97,0.00019178,2]
[346389050,1734934242363,-500.0,0.00019178,2]
[346389051,1734934242372,-743.42,0.00019178,2]
[346389052,1734934242381,-500.0,0.00019178,2]
[346389053,1734934242390,-462.60981756,0.00019178,2]
[346389054,1734934242399,-508.06,0.00019178,2]
[346389055,1734934242409,-500.0,0.00019178,2]
[346389056,1734934242419,-260.83207429,0.00019178,2]
[346389057,1734934242428,-623.84,0.00019178,2]
[346389058,1734934242437,-500.0,0.00019178,2]
[346389059,1734934242447,-811.31,0.00019178,2]
[346389060,1734934242456,-656.43,0.00019178,2]
[346389061,1734934242465,-500.0,0.00019178,2]
[346389062,1734934242475,-500.0,0.00019178,2]
[346389063,1734934242484,-500.0,0.00019178,2]
[346389064,1734934242493,-500.0,0.00019178,2]
[346389065,1734934242502,-1899.0,0.0001923,2]
[346389066,1734934242511,-3770.0,0.0001923,2]
[346389067,1734934242520,-818.0,0.0001923,2]
[346389068,1734934242530,-924.0,0.0001923,2]
[346389069,1734934242539,-1256.0,0.0001923,2]
[346389070,1734934242548,-3682.0,0.0001923,2]
[346389071,1734934242559,-536.0,0.0001923,2]
[346389072,1734934242568,-242.12768645,0.00019261,2]
[346389073,1734934242578,-318.43981845,0.00019261,2]
[346389074,1734934242588,-242.12768645,0.00019352,2]
[346389075,1734934242597,-318.43981845,0.00019352,2]
[346389076,1734934242606,-154.7660199,0.00019352,2]
[346389077,1734934242615,-420.0,0.0001937,2]
[346389078,1734934242624,-242.12768645,0.00019443,2]
[346389079,1734934242632,-318.43981845,0.00019443,2]
[346389080,1734934242641,-1664.202005,0.00019452,2]
[346389081,1734934242650,-1443.398894,0.00019452,2]
[346389082,1734934242659,-514.28643443,0.00019452,2]
[346389083,1734934242667,-500.0,0.00019452,2]
[346389084,1734934242677,-500.0,0.00019452,2]
[346389085,1734934242686,-500.0,0.00019452,2]
[346389086,1734934242695,-500.0,0.00019452,2]
[346389087,1734934242703,-500.0,0.00019452,2]
[346389088,1734934242713,-500.0,0.00019452,2]
[346389089,1734934242722,-500.0,0.00019452,2]
[346389090,1734934242731,-500.0,0.00019452,2]
[346389091,1734934242739,-500.0,0.00019452,2]
[346389092,1734934242748,-500.0,0.00019452,2]
[346389093,1734934242757,-430.87907765,0.00019452,2]
[346389094,1734934242766,-197.67122833,0.00019452,2]
[346389095,1734934242776,-202.97176565,0.00019452,2]
[346389096,1734934242786,-500.0,0.00019452,2]
[346389097,1734934242795,-500.0,0.00019452,2]
[346389098,1734934242807,-500.0,0.00019452,2]
[346389099,1734934242816,-500.0,0.00019452,2]
[346389100,1734934242826,-500.0,0.00019452,2]
[346389101,1734934242836,-549.87,0.00019452,2]
[346389102,1734934242845,-500.0,0.00019452,2]
[346389103,1734934242854,-500.0,0.00019452,2]
[346389104,1734934242863,-818.95,0.00019452,2]
[346389105,1734934242873,-500.0,0.00019452,2]
[346389106,1734934242882,-500.0,0.00019452,2]
[346389107,1734934242892,-500.0,0.00019452,2]
[346389108,1734934242901,-500.0,0.00019452,2]
[346389109,1734934242910,-507.68057935,0.00019452,2]
[346389110,1734934242919,-664.18,0.00019452,2]
[346389111,1734934242928,-500.0,0.00019452,2]
[346389112,1734934242940,-500.0,0.00019452,2]
[346389113,1734934242949,-500.0,0.00019452,2]
[346389114,1734934242958,-726.36,0.00019452,2]
[346389115,1734934242967,-500.0,0.00019452,2]
[346389116,1734934242977,-500.0,0.00019452,2]
[346389117,1734934242986,-500.0,0.00019452,2]
[346389118,1734934242995,-641.0721839,0.00019452,2]
[346389119,1734934243004,-167.92104312,0.00019452,2]
[346389120,1734934243014,-500.0,0.00019452,2]
[346389121,1734934243023,-500.0,0.00019452,2]
[346389122,1734934243032,-743.3,0.00019452,2]
[346389123,1734934243042,-500.0,0.00019452,2]
[346389124,1734934243052,-500.0,0.00019452,2]
[346389125,1734934243061,-500.0,0.00019452,2]
[346389126,1734934243070,-500.0,0.00019452,2]
[346389127,1734934243080,-500.0,0.00019452,2]
[346389128,1734934243089,-500.0,0.00019452,2]
[346389129,1734934243099,-500.0,0.00019452,2]
[346389131,1734934243107,-500.0,0.00019452,2]
[346389132,1734934243117,-547.02,0.00019452,2]
[346389133,1734934243125,-414.96597368,0.00019452,2]
[346389134,1734934243134,-500.0,0.00019452,2]
[346389135,1734934243143,-500.0,0.00019452,2]
[346389136,1734934243153,-500.0,0.00019452,2]
[346389137,1734934243162,-500.0,0.00019452,2]
[346389138,1734934243171,-500.0,0.00019452,2]
[346389139,1734934243181,-500.0,0.00019452,2]
[346389140,1734934243190,-500.0,0.00019452,2]
[346389141,1734934243199,-500.0,0.00019452,2]
[346389142,1734934243208,-500.0,0.00019452,2]
[346389143,1734934243217,-315.99,0.00019452,2]
[346389144,1734934243227,-500.0,0.00019452,2]
[346389145,1734934243236,-500.0,0.00019452,2]
[346389146,1734934243245,-500.0,0.00019452,2]
[346389148,1734934243255,-500.0,0.00019452,2]
[346389150,1734934243265,-816.91,0.00019452,2]
[346389151,1734934243274,-500.0,0.00019452,2]
[346389152,1734934243283,-500.0,0.00019452,2]
[346389153,1734934243293,-500.0,0.00019452,2]
[346389154,1734934243302,-500.0,0.00019452,2]
[346389155,1734934243312,-576.95,0.00019452,2]
[346389156,1734934243321,-500.0,0.00019452,2]
[346389157,1734934243331,-500.0,0.00019452,2]
[346389158,1734934243340,-502.53,0.00019452,2]
[346389159,1734934243350,-500.0,0.00019452,2]
[346389160,1734934243359,-648.93,0.00019452,2]
[346389161,1734934243368,-500.0,0.00019452,2]
[346389162,1734934243377,-500.0,0.00019452,2]
[346389163,1734934243387,-680.83,0.00019452,2]
[346389164,1734934243396,-500.0,0.00019452,2]
[346389165,1734934243406,-614.31,0.00019452,2]
[346389166,1734934243415,-500.0,0.00019452,2]
[346389167,1734934243424,-796.19,0.00019452,2]
[346389168,1734934243434,-500.0,0.00019452,2]
[346389169,1734934243443,-1348.63,0.00019452,2]
[346389170,1734934243454,-500.0,0.00019452,2]
[346389171,1734934243463,-737.3,0.00019452,2]
[346389172,1734934243472,-500.0,0.00019452,2]
[346389173,1734934243482,-500.0,0.00019452,2]
[346389174,1734934243491,-500.0,0.00019452,2]
[346389175,1734934243500,-500.0,0.00019452,2]
[346389176,1734934243510,-543.46,0.00019452,2]
[346389177,1734934243519,-500.0,0.00019452,2]
[346389178,1734934243528,-873.84,0.00019452,2]
[346389179,1734934243538,-505.97379931,0.00019452,2]
[346389180,1734934243547,-500.0,0.00019452,2]
[346389181,1734934243557,-500.0,0.00019452,2]
[346389182,1734934243566,-500.0,0.00019452,2]
[346389183,1734934243575,-500.0,0.00019452,2]
[346389184,1734934243585,-500.0,0.00019452,2]
[346389185,1734934243594,-500.0,0.00019452,2]
[346389186,1734934243603,-924.34,0.00019452,2]
[346389187,1734934243613,-639.9,0.00019452,2]
[346389188,1734934243622,-500.0,0.00019452,2]
[346389189,1734934243632,-226.85339915,0.00019452,2]
[346389190,1734934243641,-500.0,0.00019452,2]
[346389191,1734934243650,-500.0,0.00019452,2]
[346389192,1734934243659,-900.04,0.00019452,2]
[346389193,1734934243669,-911.99,0.00019452,2]
[346389194,1734934243678,-500.0,0.00019452,2]
[346389195,1734934243688,-500.0,0.00019452,2]
[346389196,1734934243697,-657.62,0.00019452,2]
[346389197,1734934243707,-599.98,0.00019452,2]
[346389198,1734934243717,-500.0,0.00019452,2]
[346389199,1734934243726,-500.0,0.00019452,2]
[346389200,1734934243735,-500.0,0.00019452,2]
[346389201,1734934243745,-933.34,0.00019452,2]
[346389202,1734934243754,-850.19,0.00019452,2]
[346389203,1734934243764,-500.0,0.00019452,2]
[346389204,1734934243773,-500.0,0.00019452,2]
[346389205,1734934243783,-500.0,0.00019452,2]
[346389206,1734934243793,-500.0,0.00019452,2]
[346389207,1734934243803,-500.0,0.00019452,2]
[346389208,1734934243813,-500.0,0.00019452,2]
[346389209,1734934243822,-500.0,0.00019452,2]
[346389210,1734934243831,-573.08,0.00019452,2]
[346389211,1734934243841,-500.0,0.00019452,2]
[346389212,1734934243851,-977.36,0.00019452,2]
[346389213,1734934243860,-500.0,0.00019452,2]
[346389214,1734934243869,-500.0,0.00019452,2]
[346389215,1734934243879,-500.0,0.00019452,2]
[346389216,1734934243893,-827.44,0.00019452,2]
[346389217,1734934243903,-500.0,0.00019452,2]
[346389218,1734934243913,-864.68,0.00019452,2]
[346389219,1734934243923,-765.6,0.00019452,2]
[346389220,1734934243935,-752.57,0.00019452,2]
[346389221,1734934243945,-642.28,0.00019452,2]
[346389222,1734934243955,-500.0,0.00019452,2]
[346389223,1734934243964,-500.0,0.00019452,2]
[346389224,1734934243975,-623.70257214,0.00019452,2]
[346389225,1734934243984,-762.3,0.00019452,2]
[346389226,1734934243994,-723.8,0.00019452,2]
[346389227,1734934244003,-500.0,0.00019452,2]
[346389228,1734934244014,-508.1,0.00019452,2]
[346389229,1734934244024,-500.0,0.00019452,2]
[346389230,1734934244034,-500.0,0.00019452,2]
[346389231,1734934244044,-1129.78,0.00019452,2]
[346389232,1734934244054,-1186.0,0.00019452,2]
[346389233,1734934244063,-1382.33,0.00019452,2]
[346389234,1734934244073,-500.0,0.00019452,2]
[346389235,1734934244082,-500.0,0.00019452,2]
[346389236,1734934244092,-991.01,0.00019452,2]
[346389237,1734934244102,-638.44,0.00019452,2]
[346389238,1734934244111,-500.0,0.00019452,2]
[346389239,1734934244120,-500.0,0.00019452,2]
[346389240,1734934244130,-667.29,0.00019452,2]
[346389241,1734934244140,-950.71,0.00019452,2]
[346389242,1734934244149,-500.0,0.00019452,2]
[346389243,1734934244158,-500.0,0.00019452,2]
[346389244,1734934244168,-613.16356296,0.00019452,2]
[346389245,1734934244177,-500.0,0.00019452,2]
[346389246,1734934244186,-792.09,0.00019452,2]
[346389247,1734934244196,-705.87,0.00019452,2]
[346389248,1734934244205,-1255.56,0.00019452,2]
[346389249,1734934244215,-3116.56,0.00019452,2]
[346389250,1734934244224,-8255.67,0.00019452,2]
[346389251,1734934244234,-500.0,0.00019452,2]
[346389252,1734934244243,-1945.4,0.00019452,2]
[346389253,1734934244253,-1632.51,0.00019452,2]
[346389254,1734934244262,-523.16,0.00019452,2]
[346389255,1734934244271,-1146.84,0.00019452,2]
[346389256,1734934244281,-752.2,0.00019452,2]
[346389257,1734934244290,-897.34,0.00019452,2]
[346389258,1734934244300,-585.61,0.00019452,2]
[346389259,1734934244310,-1421.0,0.00019452,2]
[346389260,1734934244319,-1929.84,0.00019452,2]
[346389261,1734934244329,-832.29,0.00019452,2]
[346389262,1734934244338,-500.0,0.00019452,2]
[346389263,1734934244348,-1104.51,0.00019452,2]
[346389264,1734934244357,-436.41333179,0.00019452,2]
[346389265,1734934244366,-911.73,0.00019452,2]
[346389266,1734934244375,-2109.57,0.00019452,2]
[346389267,1734934244385,-2253.9,0.00019452,2]
[346389268,1734934244394,-500.0,0.00019452,2]